[Event "Late-Titled-Tuesday-Blitz-September-26-2023"]
[Site "Chess.com"]
[Date "2023.09.26"]
[Round "9"]
[White "GaiozNigalidze"]
[Black "ValeriyGrinev"]
[Result "1/2-1/2"]
[WhiteElo "2729"]
[BlackElo "2591"]
[TimeControl "180+1"]
[EndTime "15:41:35 PDT"]
[Termination "Game drawn by stalemate"]

1. d4 {[%clk 0:02:44.8]} 1... Nf6 {[%clk 0:02:59.5]} 2. c4 {[%clk 0:02:42.9]}
2... g6 {[%clk 0:02:59.8]} 3. Nf3 {[%clk 0:02:43.8]} 3... Bg7 {[%clk 0:02:59.5]}
4. Nc3 {[%clk 0:02:44.4]} 4... d5 {[%clk 0:02:59.4]} 5. Bg5 {[%clk 0:02:42.9]}
5... dxc4 {[%clk 0:02:58.8]} 6. e3 {[%clk 0:02:39]} 6... Be6 {[%clk 0:02:43.5]}
7. Ne5 {[%clk 0:02:29.4]} 7... Nd5 {[%clk 0:02:42.3]} 8. Nxc4 {[%clk 0:02:22.8]}
8... c5 {[%clk 0:02:39.2]} 9. Be2 {[%clk 0:01:56.4]} 9... cxd4 {[%clk 0:02:37]}
10. exd4 {[%clk 0:01:53.7]} 10... Nc6 {[%clk 0:02:34.6]} 11. O-O {[%clk
0:01:49.8]} 11... Nxd4 {[%clk 0:02:29.2]} 12. Bd3 {[%clk 0:01:31.5]} 12... O-O
{[%clk 0:02:22.5]} 13. Ne4 {[%clk 0:01:30.8]} 13... Rc8 {[%clk 0:02:20.8]} 14.
a3 {[%clk 0:01:25.8]} 14... Nf6 {[%clk 0:01:56.2]} 15. Bxf6 {[%clk 0:01:02]}
15... exf6 {[%clk 0:01:56.2]} 16. Ncd6 {[%clk 0:00:59.9]} 16... Rc6 {[%clk
0:01:55.4]} 17. Nxb7 {[%clk 0:00:54.5]} 17... Qb6 {[%clk 0:01:49.7]} 18. Nbc5
{[%clk 0:00:34.3]} 18... Rxc5 {[%clk 0:01:49.7]} 19. Nxc5 {[%clk 0:00:35.2]}
19... Qxc5 {[%clk 0:01:50.5]} 20. Rc1 {[%clk 0:00:35.4]} 20... Qb6 {[%clk
0:01:47.7]} 21. b4 {[%clk 0:00:35.1]} 21... Rd8 {[%clk 0:01:44.5]} 22. Qe1
{[%clk 0:00:22.5]} 22... Nf3+ {[%clk 0:01:22.4]} 23. gxf3 {[%clk 0:00:22.3]}
23... Rxd3 {[%clk 0:01:23.1]} 24. Qe4 {[%clk 0:00:22.4]} 24... Rxa3 {[%clk
0:01:04.5]} 25. Rfd1 {[%clk 0:00:22.1]} 25... h5 {[%clk 0:01:02.6]} 26. b5
{[%clk 0:00:18]} 26... Ra2 {[%clk 0:00:59.6]} 27. Qe3 {[%clk 0:00:13.8]} 27...
Rb2 {[%clk 0:00:51.6]} 28. Rb1 {[%clk 0:00:09]} 28... Rxb1 {[%clk 0:00:42.5]}
29. Rxb1 {[%clk 0:00:09.9]} 29... f5 {[%clk 0:00:42.8]} 30. Qd2 {[%clk
0:00:07.5]} 30... Be5 {[%clk 0:00:37.2]} 31. Kg2 {[%clk 0:00:07.6]} 31... Kg7
{[%clk 0:00:36.9]} 32. Re1 {[%clk 0:00:07.8]} 32... Bf6 {[%clk 0:00:34.6]} 33.
Qe3 {[%clk 0:00:07.6]} 33... Qxb5 {[%clk 0:00:30.4]} 34. Qxa7 {[%clk 0:00:07.8]}
34... f4 {[%clk 0:00:30.8]} 35. Qa3 {[%clk 0:00:03.6]} 35... Qg5+ {[%clk
0:00:30.7]} 36. Kh1 {[%clk 0:00:04.1]} 36... Qh4 {[%clk 0:00:28.4]} 37. Rf1
{[%clk 0:00:01.4]} 37... Bh3 {[%clk 0:00:26.9]} 38. Rg1 {[%clk 0:00:01.8]} 38...
Qxf2 {[%clk 0:00:26.3]} 39. Qd3 {[%clk 0:00:02.7]} 39... Bd4 {[%clk 0:00:24.2]}
40. Rxg6+ {[%clk 0:00:03.4]} 40... Kf8 {[%clk 0:00:14.5]} 41. Rg8+ {[%clk
0:00:03.1]} 41... Kxg8 {[%clk 0:00:13.3]} 42. Qg6+ {[%clk 0:00:03.1]} 42... Bg7
{[%clk 0:00:08.5]} 43. Qxg7+ {[%clk 0:00:02.7]} 43... Kxg7 {[%clk 0:00:08.4]}
1/2-1/2

[Event "Late-Titled-Tuesday-Blitz-September-26-2023"]
[Site "Chess.com"]
[Date "2023.09.26"]
[Round "9"]
[White "miraitrunks"]
[Black "ExchangeAB"]
[Result "0-1"]
[WhiteElo "2176"]
[BlackElo "2409"]
[TimeControl "180+1"]
[EndTime "15:41:37 PDT"]
[Termination "ExchangeAB won on time"]

1. e4 {[%clk 0:03:00]} 1... c6 {[%clk 0:03:00.6]} 2. d4 {[%clk 0:02:59.9]} 2...
d5 {[%clk 0:03:01.5]} 3. exd5 {[%clk 0:03:00.1]} 3... cxd5 {[%clk 0:03:02.4]} 4.
c4 {[%clk 0:03:01]} 4... Nf6 {[%clk 0:03:02.5]} 5. Nc3 {[%clk 0:03:01.2]} 5...
e6 {[%clk 0:03:02.9]} 6. Nf3 {[%clk 0:03:01.7]} 6... Bb4 {[%clk 0:03:02.7]} 7.
Bd3 {[%clk 0:03:01.9]} 7... dxc4 {[%clk 0:03:02.1]} 8. Bxc4 {[%clk 0:03:02.5]}
8... O-O {[%clk 0:03:02.6]} 9. O-O {[%clk 0:03:02.6]} 9... Bxc3 {[%clk
0:02:53.5]} 10. bxc3 {[%clk 0:03:02.2]} 10... Qc7 {[%clk 0:02:54.1]} 11. Qe2
{[%clk 0:02:50.7]} 11... h6 {[%clk 0:02:47.5]} 12. Ne5 {[%clk 0:02:46.4]} 12...
Nbd7 {[%clk 0:02:44.4]} 13. Bf4 {[%clk 0:02:45.8]} 13... Nxe5 {[%clk 0:02:27.7]}
14. Bxe5 {[%clk 0:02:46.4]} 14... Qe7 {[%clk 0:02:27.3]} 15. f4 {[%clk
0:02:32.7]} 15... Bd7 {[%clk 0:02:23]} 16. Rf3 {[%clk 0:02:31.2]} 16... Bc6
{[%clk 0:02:22.2]} 17. Rg3 {[%clk 0:02:30.9]} 17... Bd5 {[%clk 0:02:11]} 18. Bd3
{[%clk 0:01:59.4]} 18... Rfd8 {[%clk 0:01:36.8]} 19. Rf1 {[%clk 0:01:56.9]}
19... Ne8 {[%clk 0:01:24.9]} 20. f5 {[%clk 0:01:50.3]} 20... f6 {[%clk
0:01:02.3]} 21. Bf4 {[%clk 0:01:29]} 21... Kf8 {[%clk 0:00:50.9]} 22. fxe6
{[%clk 0:01:20.5]} 22... Qxe6 {[%clk 0:00:46]} 23. Qh5 {[%clk 0:01:18.2]} 23...
Rac8 {[%clk 0:00:20.7]} 24. Bf5 {[%clk 0:00:55.9]} 24... Qf7 {[%clk 0:00:18.2]}
25. Qxf7+ {[%clk 0:00:48.7]} 25... Kxf7 {[%clk 0:00:19.1]} 26. Bxc8 {[%clk
0:00:48.6]} 26... Rxc8 {[%clk 0:00:20]} 27. a3 {[%clk 0:00:44.4]} 27... g5
{[%clk 0:00:18.9]} 28. Bd2 {[%clk 0:00:40.4]} 28... Kg6 {[%clk 0:00:17.6]} 29.
h4 {[%clk 0:00:39.9]} 29... Nd6 {[%clk 0:00:15.3]} 30. hxg5 {[%clk 0:00:39.4]}
30... hxg5 {[%clk 0:00:16.2]} 31. Re3 {[%clk 0:00:23.5]} 31... Ne4 {[%clk
0:00:16.1]} 32. Be1 {[%clk 0:00:23.4]} 32... Rc4 {[%clk 0:00:15.6]} 33. g4
{[%clk 0:00:19.2]} 33... Ra4 {[%clk 0:00:13.9]} 34. Rf5 {[%clk 0:00:18.7]} 34...
Bc6 {[%clk 0:00:07.2]} 35. d5 {[%clk 0:00:18.4]} 35... Bd7 {[%clk 0:00:07.4]}
36. Rf1 {[%clk 0:00:14.3]} 36... Bxg4 {[%clk 0:00:07.6]} 37. c4 {[%clk
0:00:10.6]} 37... Rxc4 {[%clk 0:00:05.1]} 38. Rd3 {[%clk 0:00:10]} 38... Bd7
{[%clk 0:00:04.6]} 39. Bb4 {[%clk 0:00:09]} 39... f5 {[%clk 0:00:04.8]} 40. Rfd1
{[%clk 0:00:06.6]} 40... f4 {[%clk 0:00:05.1]} 41. Rd4 {[%clk 0:00:06.3]} 41...
Rxd4 {[%clk 0:00:05.7]} 42. Rxd4 {[%clk 0:00:06.9]} 42... Kf5 {[%clk 0:00:06.6]}
43. d6 {[%clk 0:00:06.6]} 43... Ke5 {[%clk 0:00:05.2]} 44. Rc4 {[%clk
0:00:06.4]} 44... g4 {[%clk 0:00:04.7]} 45. Rc7 {[%clk 0:00:05.9]} 45... Ke6
{[%clk 0:00:05]} 46. Rc4 {[%clk 0:00:05.1]} 46... Bc6 {[%clk 0:00:03.5]} 47. Be1
{[%clk 0:00:02.2]} 47... f3 {[%clk 0:00:02]} 0-1

[Event "Late-Titled-Tuesday-Blitz-September-26-2023"]
[Site "Chess.com"]
[Date "2023.09.26"]
[Round "9"]
[White "Agibileg"]
[Black "Lady_Nika"]
[Result "1-0"]
[WhiteElo "2692"]
[BlackElo "2528"]
[TimeControl "180+1"]
[EndTime "15:41:38 PDT"]
[Termination "Agibileg won on time"]

1. d4 {[%clk 0:03:00]} 1... d5 {[%clk 0:02:59.6]} 2. c4 {[%clk 0:02:58.5]} 2...
e6 {[%clk 0:02:59.5]} 3. Nc3 {[%clk 0:02:57.8]} 3... f5 {[%clk 0:02:59]} 4. Nf3
{[%clk 0:02:54.3]} 4... Nf6 {[%clk 0:02:58.5]} 5. g3 {[%clk 0:02:54.4]} 5... c6
{[%clk 0:02:58.1]} 6. Bg2 {[%clk 0:02:54.8]} 6... Bd6 {[%clk 0:02:58.7]} 7. Qc2
{[%clk 0:02:55.1]} 7... O-O {[%clk 0:02:56.2]} 8. O-O {[%clk 0:02:55.4]} 8...
Ne4 {[%clk 0:02:53.7]} 9. Bf4 {[%clk 0:02:55.3]} 9... Qe7 {[%clk 0:02:52.3]} 10.
c5 {[%clk 0:02:36.1]} 10... Bxf4 {[%clk 0:02:51.6]} 11. gxf4 {[%clk 0:02:37]}
11... Nd7 {[%clk 0:02:51.4]} 12. b4 {[%clk 0:02:34.2]} 12... a6 {[%clk
0:02:49.4]} 13. a4 {[%clk 0:02:33.9]} 13... Rf6 {[%clk 0:02:49.4]} 14. b5 {[%clk
0:02:20.8]} 14... axb5 {[%clk 0:02:48.3]} 15. axb5 {[%clk 0:02:20.4]} 15... Rxa1
{[%clk 0:02:48.8]} 16. Rxa1 {[%clk 0:02:21.3]} 16... Nf8 {[%clk 0:02:29.1]} 17.
Ra8 {[%clk 0:02:12.3]} 17... Bd7 {[%clk 0:02:24.8]} 18. Ne5 {[%clk 0:02:11.6]}
18... Be8 {[%clk 0:02:20.9]} 19. f3 {[%clk 0:02:00.5]} 19... Nxc3 {[%clk
0:02:19.1]} 20. Qxc3 {[%clk 0:02:01.4]} 20... Rh6 {[%clk 0:02:19.4]} 21. Qe1
{[%clk 0:01:57]} 21... cxb5 {[%clk 0:02:18.6]} 22. h3 {[%clk 0:01:47.2]} 22...
Bc6 {[%clk 0:02:17.7]} 23. e3 {[%clk 0:01:40.5]} 23... Be8 {[%clk 0:02:04.9]}
24. Kh2 {[%clk 0:01:38.8]} 24... Ng6 {[%clk 0:02:04.3]} 25. Qa5 {[%clk
0:01:34.6]} 25... Nf8 {[%clk 0:01:49.6]} 26. Bf1 {[%clk 0:01:23.9]} 26... Bc6
{[%clk 0:01:42.8]} 27. Qa7 {[%clk 0:01:13.3]} 27... Qh4 {[%clk 0:01:30.7]} 28.
Rxf8+ {[%clk 0:00:41.3]} 28... Kxf8 {[%clk 0:01:29.9]} 29. Qb8+ {[%clk
0:00:42.2]} 29... Be8 {[%clk 0:01:29.2]} 30. Qxb7 {[%clk 0:00:40.2]} 30... Qf2+
{[%clk 0:01:22.7]} 31. Bg2 {[%clk 0:00:40.3]} 31... Qxe3 {[%clk 0:01:18.1]} 32.
c6 {[%clk 0:00:38.6]} 32... Qxf4+ {[%clk 0:01:17.5]} 33. Kh1 {[%clk 0:00:38.4]}
33... Qxd4 {[%clk 0:00:28.9]} 34. Qb8 {[%clk 0:00:31.6]} 34... Rh4 {[%clk
0:00:08.8]} 35. Qd6+ {[%clk 0:00:26.2]} 35... Kg8 {[%clk 0:00:07.9]} 36. c7
{[%clk 0:00:23.8]} 36... Qc4 {[%clk 0:00:01.5]} 37. Nc6 {[%clk 0:00:23.6]} 37...
Qc1+ {[%clk 0:00:01.4]} 38. Kh2 {[%clk 0:00:23.3]} 38... Qxc6 {[%clk 0:00:01.6]}
39. Qxc6 {[%clk 0:00:23.4]} 39... Bxc6 {[%clk 0:00:02.5]} 40. c8=Q+ {[%clk
0:00:24.3]} 40... Kf7 {[%clk 0:00:03.4]} 41. Qxc6 {[%clk 0:00:25.2]} 41... Rc4
{[%clk 0:00:04.1]} 42. Qxb5 {[%clk 0:00:24.9]} 42... h6 {[%clk 0:00:05]} 43.
Qd7+ {[%clk 0:00:24.2]} 43... Kf6 {[%clk 0:00:05.2]} 44. Bf1 {[%clk 0:00:22.6]}
44... Rc2+ {[%clk 0:00:05.2]} 45. Kg1 {[%clk 0:00:21.7]} 45... g5 {[%clk
0:00:05.7]} 46. Qh7 {[%clk 0:00:20.7]} 46... Ke5 {[%clk 0:00:03.2]} 47. Qxh6
{[%clk 0:00:21]} 1-0

[Event "Late-Titled-Tuesday-Blitz-September-26-2023"]
[Site "Chess.com"]
[Date "2023.09.26"]
[Round "9"]
[White "Bauman_Guy"]
[Black "QuintilianoR"]
[Result "1-0"]
[WhiteElo "2867"]
[BlackElo "2665"]
[TimeControl "180+1"]
[EndTime "15:41:46 PDT"]
[Termination "Bauman_Guy won by resignation"]

1. e4 {[%clk 0:03:00.9]} 1... c5 {[%clk 0:02:59]} 2. Nf3 {[%clk 0:02:59.2]} 2...
d6 {[%clk 0:02:59.1]} 3. d4 {[%clk 0:02:59.4]} 3... cxd4 {[%clk 0:03:00]} 4.
Nxd4 {[%clk 0:02:59.6]} 4... Nf6 {[%clk 0:03:00.3]} 5. Nc3 {[%clk 0:03:00.1]}
5... g6 {[%clk 0:03:00.4]} 6. Be3 {[%clk 0:02:59.9]} 6... Bg7 {[%clk 0:03:00.6]}
7. f3 {[%clk 0:03:00.5]} 7... O-O {[%clk 0:03:01]} 8. Qd2 {[%clk 0:03:01.1]}
8... Nc6 {[%clk 0:03:01]} 9. O-O-O {[%clk 0:03:01.8]} 9... d5 {[%clk 0:02:59.4]}
10. exd5 {[%clk 0:03:01.6]} 10... Nxd5 {[%clk 0:02:59]} 11. Nxc6 {[%clk
0:03:02.3]} 11... bxc6 {[%clk 0:02:59.3]} 12. Bd4 {[%clk 0:03:03]} 12... e5
{[%clk 0:02:51.4]} 13. Bc5 {[%clk 0:03:02.3]} 13... Be6 {[%clk 0:02:50.4]} 14.
Ne4 {[%clk 0:03:02.2]} 14... Re8 {[%clk 0:02:45]} 15. h4 {[%clk 0:03:01.6]}
15... h6 {[%clk 0:02:43.7]} 16. h5 {[%clk 0:03:00.9]} 16... f5 {[%clk
0:02:01.6]} 17. Nd6 {[%clk 0:02:55.3]} 17... Qf6 {[%clk 0:02:01.3]} 18. Nxe8
{[%clk 0:02:50]} 18... Rxe8 {[%clk 0:02:02.2]} 19. hxg6 {[%clk 0:02:41.2]} 19...
Qxg6 {[%clk 0:01:53.3]} 20. Bc4 {[%clk 0:02:05.1]} 20... e4 {[%clk 0:01:43.8]}
21. Bd4 {[%clk 0:01:44.8]} 21... e3 {[%clk 0:01:40.5]} 22. Qd3 {[%clk 0:01:40]}
22... Qg5 {[%clk 0:00:55.9]} 23. Kb1 {[%clk 0:01:36.5]} 23... f4 {[%clk
0:00:45.5]} 24. Bxg7 {[%clk 0:01:24.4]} 24... Qxg7 {[%clk 0:00:46.4]} 25. Qd4
{[%clk 0:01:23.8]} 25... Rf8 {[%clk 0:00:22.5]} 26. Qxg7+ {[%clk 0:01:09.8]}
26... Kxg7 {[%clk 0:00:21.9]} 27. Kc1 {[%clk 0:01:10.7]} 27... Rf5 {[%clk
0:00:15.7]} 28. Rh4 {[%clk 0:00:56]} 28... Rg5 {[%clk 0:00:11.5]} 29. Bxd5
{[%clk 0:00:50.4]} 29... cxd5 {[%clk 0:00:11.3]} 30. Rxf4 {[%clk 0:00:50.6]}
30... Rxg2 {[%clk 0:00:11.2]} 31. Re1 {[%clk 0:00:51.1]} 31... h5 {[%clk
0:00:04.9]} 32. Rxe3 {[%clk 0:00:50]} 32... Bg8 {[%clk 0:00:05.2]} 33. Re7+
{[%clk 0:00:44.2]} 33... Kg6 {[%clk 0:00:05.7]} 34. Re5 {[%clk 0:00:40.8]} 34...
Rg1+ {[%clk 0:00:05.2]} 35. Kd2 {[%clk 0:00:40.6]} 35... Rg2+ {[%clk 0:00:05.7]}
36. Kc3 {[%clk 0:00:39.6]} 36... Bf7 {[%clk 0:00:06.6]} 37. Re7 {[%clk
0:00:32.3]} 37... Bg8 {[%clk 0:00:05.8]} 38. a4 {[%clk 0:00:22.9]} 38... Kg5
{[%clk 0:00:06.1]} 39. Rf8 {[%clk 0:00:23.1]} 39... Kh6 {[%clk 0:00:06.5]} 40.
Ree8 {[%clk 0:00:16.3]} 40... Kh7 {[%clk 0:00:07]} 41. Kd4 {[%clk 0:00:08.4]}
41... h4 {[%clk 0:00:07.1]} 42. Rf4 {[%clk 0:00:08.7]} 42... h3 {[%clk
0:00:03.3]} 43. Rh4+ {[%clk 0:00:08.8]} 43... Kg7 {[%clk 0:00:04.2]} 44. Rxh3
{[%clk 0:00:08.9]} 44... Bf7 {[%clk 0:00:03.8]} 45. Re7 {[%clk 0:00:09.3]} 45...
Rxc2 {[%clk 0:00:03.9]} 46. Rb7 {[%clk 0:00:09.4]} 46... Rc4+ {[%clk 0:00:03.8]}
47. Ke5 {[%clk 0:00:09]} 47... Rxa4 {[%clk 0:00:04.7]} 48. Rg3+ {[%clk
0:00:09.4]} 48... Kf8 {[%clk 0:00:05.3]} 49. Rg5 {[%clk 0:00:08.3]} 49... Ra6
{[%clk 0:00:05.4]} 50. Rf5 {[%clk 0:00:08.2]} 50... Re6+ {[%clk 0:00:04.6]} 51.
Kd4 {[%clk 0:00:08.7]} 51... Re7 {[%clk 0:00:05.1]} 52. Rxe7 {[%clk 0:00:08]}
52... Kxe7 {[%clk 0:00:06]} 53. Ke5 {[%clk 0:00:08.6]} 53... Be6 {[%clk
0:00:06.9]} 54. Rf6 {[%clk 0:00:08.8]} 54... Bf7 {[%clk 0:00:06.8]} 55. Ra6
{[%clk 0:00:09.3]} 1-0

[Event "Late-Titled-Tuesday-Blitz-September-26-2023"]
[Site "Chess.com"]
[Date "2023.09.26"]
[Round "9"]
[White "stregachess"]
[Black "KorolDimitriy75"]
[Result "0-1"]
[WhiteElo "2098"]
[BlackElo "2366"]
[TimeControl "180+1"]
[EndTime "15:41:46 PDT"]
[Termination "KorolDimitriy75 won by resignation"]

1. d4 {[%clk 0:03:00.9]} 1... Nf6 {[%clk 0:02:54.4]} 2. Nf3 {[%clk 0:03:00.8]}
2... g6 {[%clk 0:02:54.1]} 3. Bf4 {[%clk 0:03:00.4]} 3... c5 {[%clk 0:02:54.1]}
4. e3 {[%clk 0:02:59.8]} 4... Qb6 {[%clk 0:02:54.3]} 5. dxc5 {[%clk 0:02:57.9]}
5... Qxb2 {[%clk 0:02:51.6]} 6. Nbd2 {[%clk 0:02:58]} 6... Qc3 {[%clk
0:02:42.7]} 7. Rb1 {[%clk 0:02:52.8]} 7... Qxc5 {[%clk 0:02:16.3]} 8. Bd3 {[%clk
0:02:40]} 8... Nc6 {[%clk 0:01:09.4]} 9. Rb5 {[%clk 0:02:27.9]} 9... Qa3 {[%clk
0:00:42.9]} 10. O-O {[%clk 0:02:20.3]} 10... d5 {[%clk 0:00:40.1]} 11. Ne5
{[%clk 0:02:01.5]} 11... Bg7 {[%clk 0:00:18.7]} 12. h3 {[%clk 0:01:51.7]} 12...
O-O {[%clk 0:00:18.1]} 13. Qb1 {[%clk 0:01:36.7]} 13... a6 {[%clk 0:00:13.3]}
14. Rb6 {[%clk 0:01:24.8]} 14... Nh5 {[%clk 0:00:12.2]} 15. Nxc6 {[%clk
0:01:05.5]} 15... bxc6 {[%clk 0:00:13.1]} 16. Bh2 {[%clk 0:01:05.1]} 16... Bd7
{[%clk 0:00:10.4]} 17. Rb7 {[%clk 0:00:56.8]} 17... Rfd8 {[%clk 0:00:09.8]} 18.
Nf3 {[%clk 0:00:54.3]} 18... e6 {[%clk 0:00:08]} 19. g4 {[%clk 0:00:52]} 19...
Nf6 {[%clk 0:00:07.4]} 20. Ne5 {[%clk 0:00:52.1]} 20... Be8 {[%clk 0:00:07.2]}
21. Qb6 {[%clk 0:00:45.3]} 21... c5 {[%clk 0:00:06.3]} 22. Qc7 {[%clk 0:00:18]}
22... Rac8 {[%clk 0:00:05.7]} 23. Qb6 {[%clk 0:00:18.2]} 23... c4 {[%clk
0:00:05.6]} 24. Be2 {[%clk 0:00:17.2]} 24... Qc5 {[%clk 0:00:05.2]} 25. Qb1
{[%clk 0:00:14.9]} 25... Qa5 {[%clk 0:00:04.6]} 26. Bf3 {[%clk 0:00:14.3]} 26...
Nd7 {[%clk 0:00:03.6]} 27. Nxd7 {[%clk 0:00:12.1]} 27... Bxd7 {[%clk 0:00:03.6]}
28. Qd1 {[%clk 0:00:08.2]} 28... Bc6 {[%clk 0:00:03.6]} 29. Rb1 {[%clk
0:00:07.7]} 29... Qxa2 {[%clk 0:00:03.4]} 30. Ra1 {[%clk 0:00:07]} 30... Qxa1
{[%clk 0:00:01.2]} 31. Qxa1 {[%clk 0:00:06]} 31... Bxa1 {[%clk 0:00:02.1]} 32.
Rxa1 {[%clk 0:00:06.3]} 32... Ra8 {[%clk 0:00:02.3]} 33. Kg2 {[%clk 0:00:06.2]}
33... a5 {[%clk 0:00:02.8]} 34. Be5 {[%clk 0:00:06.2]} 34... a4 {[%clk
0:00:03.2]} 35. Ra2 {[%clk 0:00:06.6]} 35... a3 {[%clk 0:00:03.4]} 36. Bf6
{[%clk 0:00:07.1]} 36... Rdb8 {[%clk 0:00:03.5]} 37. g5 {[%clk 0:00:07.5]} 37...
Rb7 {[%clk 0:00:02.8]} 38. h4 {[%clk 0:00:07.1]} 38... Rba7 {[%clk 0:00:03.2]}
39. h5 {[%clk 0:00:07.5]} 39... Bb5 {[%clk 0:00:03.4]} 40. hxg6 {[%clk
0:00:07.6]} 40... hxg6 {[%clk 0:00:03]} 41. Kg3 {[%clk 0:00:04.5]} 41... Kf8
{[%clk 0:00:02.9]} 42. Kg4 {[%clk 0:00:04.8]} 42... Ke8 {[%clk 0:00:03.1]} 43.
e4 {[%clk 0:00:03.6]} 43... c3 {[%clk 0:00:02.7]} 44. exd5 {[%clk 0:00:03.6]}
44... Bc4 {[%clk 0:00:03.1]} 45. dxe6 {[%clk 0:00:03.2]} 45... Bxa2 {[%clk
0:00:02.7]} 46. exf7+ {[%clk 0:00:02.4]} 46... Bxf7 {[%clk 0:00:03.6]} 47. Bxa8
{[%clk 0:00:02.1]} 47... Rxa8 {[%clk 0:00:03.4]} 48. Bxc3 {[%clk 0:00:02.6]}
48... a2 {[%clk 0:00:03.6]} 49. Kf4 {[%clk 0:00:02.3]} 49... a1=Q {[%clk
0:00:03]} 50. Bxa1 {[%clk 0:00:03.2]} 50... Rxa1 {[%clk 0:00:03.1]} 51. Ke5
{[%clk 0:00:04.1]} 51... Rc1 {[%clk 0:00:03.2]} 52. Kf6 {[%clk 0:00:05]} 52...
Rxc2 {[%clk 0:00:03.5]} 53. Kg7 {[%clk 0:00:05.9]} 53... Rxf2 {[%clk 0:00:03.7]}
54. Kh7 {[%clk 0:00:05.9]} 54... Rf5 {[%clk 0:00:04.6]} 55. Kg7 {[%clk
0:00:06.5]} 55... Rxg5 {[%clk 0:00:04.9]} 56. Kh7 {[%clk 0:00:07.4]} 56... Rf5
{[%clk 0:00:05.6]} 57. Kg7 {[%clk 0:00:08.1]} 57... g5 {[%clk 0:00:06]} 58. Kh7
{[%clk 0:00:09]} 58... g4 {[%clk 0:00:06.4]} 59. Kg7 {[%clk 0:00:09.8]} 59... g3
{[%clk 0:00:06.8]} 60. Kh6 {[%clk 0:00:10.7]} 60... g2 {[%clk 0:00:07.2]} 0-1

[Event "Late-Titled-Tuesday-Blitz-September-26-2023"]
[Site "Chess.com"]
[Date "2023.09.26"]
[Round "9"]
[White "DrCeltic"]
[Black "Mikhail_Golubev"]
[Result "1/2-1/2"]
[WhiteElo "2459"]
[BlackElo "2597"]
[TimeControl "180+1"]
[EndTime "15:41:51 PDT"]
[Termination "Game drawn - insufficient material"]

1. e4 {[%clk 0:02:59.1]} 1... c5 {[%clk 0:02:59.2]} 2. Nf3 {[%clk 0:02:59.2]}
2... d6 {[%clk 0:02:59.5]} 3. d4 {[%clk 0:02:59.9]} 3... cxd4 {[%clk 0:02:59.7]}
4. Nxd4 {[%clk 0:03:00.8]} 4... Nf6 {[%clk 0:03:00]} 5. Nc3 {[%clk 0:03:01.3]}
5... Nc6 {[%clk 0:03:00.6]} 6. Bc4 {[%clk 0:03:00.8]} 6... e6 {[%clk 0:03:00.3]}
7. Bb3 {[%clk 0:03:00.9]} 7... Bd7 {[%clk 0:02:54.1]} 8. Be3 {[%clk 0:03:00.3]}
8... a6 {[%clk 0:02:37.1]} 9. f4 {[%clk 0:03:00]} 9... Nxd4 {[%clk 0:02:15.9]}
10. Qxd4 {[%clk 0:02:59.1]} 10... Be7 {[%clk 0:01:52.7]} 11. O-O-O {[%clk
0:02:58.9]} 11... O-O {[%clk 0:01:48.1]} 12. Kb1 {[%clk 0:02:58.4]} 12... Rc8
{[%clk 0:01:03.1]} 13. e5 {[%clk 0:02:53.7]} 13... Ne8 {[%clk 0:01:02.6]} 14. g4
{[%clk 0:02:44.9]} 14... Bc6 {[%clk 0:01:01.1]} 15. Rhg1 {[%clk 0:02:41.3]}
15... dxe5 {[%clk 0:00:57.8]} 16. Qxe5 {[%clk 0:02:38.6]} 16... Qc7 {[%clk
0:00:54]} 17. Qxc7 {[%clk 0:02:19.6]} 17... Nxc7 {[%clk 0:00:48.4]} 18. g5
{[%clk 0:02:14.9]} 18... Rfd8 {[%clk 0:00:37.5]} 19. Bb6 {[%clk 0:02:10.1]}
19... Rxd1+ {[%clk 0:00:34.5]} 20. Rxd1 {[%clk 0:02:10.7]} 20... Nb5 {[%clk
0:00:33.6]} 21. Nxb5 {[%clk 0:02:06.3]} 21... Bxb5 {[%clk 0:00:34.5]} 22. a4
{[%clk 0:02:05]} 22... Bc6 {[%clk 0:00:33.4]} 23. a5 {[%clk 0:01:59.6]} 23...
Kf8 {[%clk 0:00:32.4]} 24. c3 {[%clk 0:01:56.5]} 24... Ke8 {[%clk 0:00:31.9]}
25. Bc2 {[%clk 0:01:56.3]} 25... g6 {[%clk 0:00:30.1]} 26. h4 {[%clk 0:01:55.9]}
26... Bd8 {[%clk 0:00:29.4]} 27. h5 {[%clk 0:01:44.2]} 27... Bxb6 {[%clk
0:00:27.3]} 28. axb6 {[%clk 0:01:45.1]} 28... Ke7 {[%clk 0:00:26.5]} 29. Rd2
{[%clk 0:01:39.8]} 29... Bd5 {[%clk 0:00:25.4]} 30. f5 {[%clk 0:01:23.7]} 30...
gxf5 {[%clk 0:00:22.2]} 31. Bxf5 {[%clk 0:01:23.7]} 31... Rg8 {[%clk 0:00:21.6]}
32. Bxh7 {[%clk 0:00:57.7]} 32... Rxg5 {[%clk 0:00:21.1]} 33. c4 {[%clk
0:00:42]} 33... Bxc4 {[%clk 0:00:17.9]} 34. Be4 {[%clk 0:00:41.6]} 34... Rxh5
{[%clk 0:00:15.3]} 35. Bxb7 {[%clk 0:00:41]} 35... Rb5 {[%clk 0:00:08.7]} 36.
Bxa6 {[%clk 0:00:40.3]} 36... Ba2+ {[%clk 0:00:08.8]} 37. Kxa2 {[%clk
0:00:33.3]} 37... Ra5+ {[%clk 0:00:09.1]} 38. Kb3 {[%clk 0:00:31.7]} 38... Rxa6
{[%clk 0:00:10]} 39. Kc4 {[%clk 0:00:29.7]} 39... Rxb6 {[%clk 0:00:10.1]} 40.
Kc5 {[%clk 0:00:30.1]} 40... Rb3 {[%clk 0:00:09.1]} 41. Kc4 {[%clk 0:00:30]}
41... Rb8 {[%clk 0:00:08.7]} 42. b4 {[%clk 0:00:30.6]} 42... e5 {[%clk
0:00:08.7]} 43. b5 {[%clk 0:00:31.3]} 43... Ke6 {[%clk 0:00:08.5]} 44. Kc5
{[%clk 0:00:31.8]} 44... Rc8+ {[%clk 0:00:07.7]} 45. Kb4 {[%clk 0:00:30.4]}
45... f5 {[%clk 0:00:07]} 46. b6 {[%clk 0:00:30.6]} 46... e4 {[%clk 0:00:05.7]}
47. Kb5 {[%clk 0:00:30.9]} 47... Ke5 {[%clk 0:00:05.4]} 48. b7 {[%clk
0:00:31.1]} 48... Rb8 {[%clk 0:00:04.4]} 49. Kc6 {[%clk 0:00:32]} 49... e3
{[%clk 0:00:03.4]} 50. Rd7 {[%clk 0:00:31.6]} 50... Kf4 {[%clk 0:00:02.5]} 51.
Re7 {[%clk 0:00:31.8]} 51... Kf3 {[%clk 0:00:01.4]} 52. Kd5 {[%clk 0:00:31.1]}
52... Rxb7 {[%clk 0:00:01.4]} 53. Rxb7 {[%clk 0:00:31.4]} 53... e2 {[%clk
0:00:01.8]} 54. Re7 {[%clk 0:00:30.6]} 54... Kf2 {[%clk 0:00:02]} 55. Rxe2+
{[%clk 0:00:30.4]} 55... Kxe2 {[%clk 0:00:01.9]} 56. Ke5 {[%clk 0:00:31]} 56...
Kf2 {[%clk 0:00:01.2]} 57. Kxf5 {[%clk 0:00:31.9]} 1/2-1/2